Workbook

Sheet qtemp
A1: 2024年绥中县教师招聘资格审查人选名单
A2: 准考证号 | B2: 姓名 | C2: 报考单位 | D2: 报考职位 | E2: 职测成绩 | F2: 综应成绩 | G2: 总成绩 | H2: 名次 | I2: 备注
A3: 716010209704 | B3: 冯彦菽 | C3: 高中-葫芦岛市绥中县中小学（幼儿园） | D3: 物理教师 | E3: 78.55 | F3: 78.75 | G3: =E3/2+F3/2 -> 78.65 | H3: 1
A4: 716010209629 | B4: 戴莹莹 | C4: 高中-葫芦岛市绥中县中小学（幼儿园） | D4: 物理教师 | E4: 69.04 | F4: 76.00 | G4: =E4/2+F4/2 -> 72.52 | H4: 2
A5: 716010209627 | B5: 张鑫龙 | C5: 高中-葫芦岛市绥中县中小学（幼儿园） | D5: 物理教师 | E5: 72.62 | F5: 70.25 | G5: 71.44 | H5: 3
A6: 716020209813 | B6: 佟晨 | C6: 高中-葫芦岛市绥中县中小学（幼儿园） | D6: 体育教师 | E6: 68.51 | F6: 71.75 | G6: 70.13 | H6: 1
A7: 716020209712 | B7: 许亚航 | C7: 高中-葫芦岛市绥中县中小学（幼儿园） | D7: 体育教师 | E7: 62.96 | F7: 75.00 | G7: 68.98 | H7: 2
A8: 716020209729 | B8: 尹含 | C8: 高中-葫芦岛市绥中县中小学（幼儿园） | D8: 体育教师 | E8: 69.93 | F8: 68.00 | G8: 68.97 | H8: 3
A9: 716020209802 | B9: 张芯迪 | C9: 高中-葫芦岛市绥中县中小学（幼儿园） | D9: 体育教师 | E9: 58.00 | F9: 79.75 | G9: 68.88 | H9: 4
A10: 716020209720 | B10: 奚铁钧 | C10: 高中-葫芦岛市绥中县中小学（幼儿园） | D10: 体育教师 | E10: 61.10 | F10: 73.25 | G10: 67.18 | H10: 5
A11: 716020209709 | B11: 徐埼 | C11: 高中-葫芦岛市绥中县中小学（幼儿园） | D11: 体育教师 | E11: 59.39 | F11: 74.25 | G11: 66.82 | H11: 6
A12: 716030209825 | B12: 陆冬一 | C12: 高中-葫芦岛市绥中县中小学（幼儿园） | D12: 地理教师 | E12: 80.14 | F12: 81.00 | G12: 80.57 | H12: 1
A13: 716030209819 | B13: 康雅宁 | C13: 高中-葫芦岛市绥中县中小学（幼儿园） | D13: 地理教师 | E13: 77.60 | F13: 76.25 | G13: 76.93 | H13: 2
A14: 716030209824 | B14: 杜林翰 | C14: 高中-葫芦岛市绥中县中小学（幼儿园） | D14: 地理教师 | E14: 77.43 | F14: 73.00 | G14: 75.22 | H14: 3
A15: 716030209815 | B15: 赵瑾瑜 | C15: 高中-葫芦岛市绥中县中小学（幼儿园） | D15: 地理教师 | E15: 76.30 | F15: 74.00 | G15: 75.15 | H15: 4
A16: 716030209818 | B16: 陈佳新 | C16: 高中-葫芦岛市绥中县中小学（幼儿园） | D16: 地理教师 | E16: 72.53 | F16: 75.00 | G16: 73.77 | H16: 5
A17: 716030209820 | B17: 赵文笛 | C17: 高中-葫芦岛市绥中县中小学（幼儿园） | D17: 地理教师 | E17: 67.55 | F17: 75.50 | G17: 71.53 | H17: 6
A18: 716030209816 | B18: 李明亮 | C18: 高中-葫芦岛市绥中县中小学（幼儿园） | D18: 地理教师 | E18: 66.53 | F18: 75.50 | G18: 71.02 | H18: 7
A19: 716030209823 | B19: 王爱文 | C19: 高中-葫芦岛市绥中县中小学（幼儿园） | D19: 地理教师 | E19: 56.60 | F19: 77.00 | G19: 66.80 | H19: 8
A20: 716030209822 | B20: 苑晶晶 | C20: 高中-葫芦岛市绥中县中小学（幼儿园） | D20: 地理教师 | E20: 54.09 | F20: 78.75 | G20: 66.42 | H20: 9
A21: 716030209817 | B21: 赵昕 | C21: 高中-葫芦岛市绥中县中小学（幼儿园） | D21: 地理教师 | E21: 57.71 | F21: 70.50 | G21: 64.11 | H21: 10
A22: 716030209826 | B22: 张艳双 | C22: 高中-葫芦岛市绥中县中小学（幼儿园） | D22: 地理教师 | E22: 22.95 | F22: 54.75 | G22: 38.85 | H22: 11
A23: 716040209905 | B23: 杨馥萌 | C23: 高中-葫芦岛市绥中县中小学（幼儿园） | D23: 历史教师 | E23: 77.13 | F23: 79.25 | G23: 78.19 | H23: 1
A24: 716040209901 | B24: 赵洋 | C24: 高中-葫芦岛市绥中县中小学（幼儿园） | D24: 历史教师 | E24: 80.03 | F24: 74.25 | G24: 77.14 | H24: 2
A25: 716040209830 | B25: 郭金秋 | C25: 高中-葫芦岛市绥中县中小学（幼儿园） | D25: 历史教师 | E25: 77.02 | F25: 77.00 | G25: 77.01 | H25: 3
A26: 716050209920 | B26: 刘诗雯 | C26: 高中-葫芦岛市绥中县中小学（幼儿园） | D26: 生物教师 | E26: 73.51 | F26: 79.75 | G26: 76.63 | H26: 1
A27: 716050209924 | B27: 郭泓力 | C27: 高中-葫芦岛市绥中县中小学（幼儿园） | D27: 生物教师 | E27: 73.24 | F27: 75.50 | G27: 74.37 | H27: 2
A28: 716050209923 | B28: 郭思琪 | C28: 高中-葫芦岛市绥中县中小学（幼儿园） | D28: 生物教师 | E28: 69.33 | F28: 77.25 | G28: 73.29 | H28: 3
A29: 716060210010 | B29: 朱雨晴 | C29: 高中-葫芦岛市绥中县中小学（幼儿园） | D29: 语文教师 | E29: 76.06 | F29: 79.25 | G29: 77.66 | H29: 1
A30: 716060210002 | B30: 张鑫 | C30: 高中-葫芦岛市绥中县中小学（幼儿园） | D30: 语文教师 | E30: 73.70 | F30: 81.25 | G30: 77.48 | H30: 2
A31: 716060210024 | B31: 田镜楠 | C31: 高中-葫芦岛市绥中县中小学（幼儿园） | D31: 语文教师 | E31: 77.50 | F31: 77.00 | G31: 77.25 | H31: 3
A32: 716060210030 | B32: 王云鹏 | C32: 高中-葫芦岛市绥中县中小学（幼儿园） | D32: 语文教师 | E32: 78.00 | F32: 75.00 | G32: 76.50 | H32: 4
A33: 716060209927 | B33: 李子傲 | C33: 高中-葫芦岛市绥中县中小学（幼儿园） | D33: 语文教师 | E33: 76.45 | F33: 75.50 | G33: 75.98 | H33: 5
A34: 716060210011 | B34: 李格格 | C34: 高中-葫芦岛市绥中县中小学（幼儿园） | D34: 语文教师 | E34: 70.73 | F34: 79.00 | G34: 74.87 | H34: 6
A35: 716060210026 | B35: 潘思彤 | C35: 高中-葫芦岛市绥中县中小学（幼儿园） | D35: 语文教师 | E35: 69.76 | F35: 79.00 | G35: 74.38 | H35: 7
A36: 716060210003 | B36: 袁仔冬 | C36: 高中-葫芦岛市绥中县中小学（幼儿园） | D36: 语文教师 | E36: 70.58 | F36: 78.00 | G36: 74.29 | H36: 8
A37: 716060210021 | B37: 张爽 | C37: 高中-葫芦岛市绥中县中小学（幼儿园） | D37: 语文教师 | E37: 66.85 | F37: 81.00 | G37: 73.93 | H37: 9
A38: 716060209926 | B38: 毛彦懿 | C38: 高中-葫芦岛市绥中县中小学（幼儿园） | D38: 语文教师 | E38: 74.71 | F38: 73.00 | G38: 73.86 | H38: 10
A39: 716060210001 | B39: 刘美辰 | C39: 高中-葫芦岛市绥中县中小学（幼儿园） | D39: 语文教师 | E39: 72.26 | F39: 75.25 | G39: 73.76 | H39: 11
A40: 716060210018 | B40: 吴迪 | C40: 高中-葫芦岛市绥中县中小学（幼儿园） | D40: 语文教师 | E40: 66.86 | F40: 80.50 | G40: 73.68 | H40: 12
A41: 716070210108 | B41: 刘茯芮 | C41: 高中（含职专）-葫芦岛市绥中县中小学（幼儿园） | D41: 数学教师 | E41: 83.00 | F41: 79.00 | G41: 81.00 | H41: 1
A42: 716070210128 | B42: 李佳美 | C42: 高中（含职专）-葫芦岛市绥中县中小学（幼儿园） | D42: 数学教师 | E42: 81.85 | F42: 77.00 | G42: 79.43 | H42: 2
A43: 716070210111 | B43: 杨婷婷 | C43: 高中（含职专）-葫芦岛市绥中县中小学（幼儿园） | D43: 数学教师 | E43: 83.34 | F43: 75.25 | G43: 79.30 | H43: 3
A44: 716070210110 | B44: 赵婉彤 | C44: 高中（含职专）-葫芦岛市绥中县中小学（幼儿园） | D44: 数学教师 | E44: 77.14 | F44: 77.50 | G44: 77.32 | H44: 4
A45: 716070210124 | B45: 聂歆昊 | C45: 高中（含职专）-葫芦岛市绥中县中小学（幼儿园） | D45: 数学教师 | E45: 78.37 | F45: 75.25 | G45: 76.81 | H45: 5
A46: 716070210217 | B46: 谷欣 | C46: 高中（含职专）-葫芦岛市绥中县中小学（幼儿园） | D46: 数学教师 | E46: 75.51 | F46: 78.00 | G46: 76.76 | H46: 6
A47: 716070210216 | B47: 李佳彧 | C47: 高中（含职专）-葫芦岛市绥中县中小学（幼儿园） | D47: 数学教师 | E47: 74.73 | F47: 78.00 | G47: 76.37 | H47: 7
A48: 716070210207 | B48: 张浩驰 | C48: 高中（含职专）-葫芦岛市绥中县中小学（幼儿园） | D48: 数学教师 | E48: 75.36 | F48: 77.25 | G48: 76.31 | H48: 8
A49: 716070210116 | B49: 王秀蓥 | C49: 高中（含职专）-葫芦岛市绥中县中小学（幼儿园） | D49: 数学教师 | E49: 77.30 | F49: 74.75 | G49: 76.03 | H49: 9
A50: 716070210120 | B50: 骆玉初 | C50: 高中（含职专）-葫芦岛市绥中县中小学（幼儿园） | D50: 数学教师 | E50: 79.79 | F50: 72.25 | G50: 76.02 | H50: 10
A51: 716070210121 | B51: 于涵 | C51: 高中（含职专）-葫芦岛市绥中县中小学（幼儿园） | D51: 数学教师 | E51: 69.66 | F51: 81.00 | G51: 75.33 | H51: 11
A52: 716070210125 | B52: 周爱乔 | C52: 高中（含职专）-葫芦岛市绥中县中小学（幼儿园） | D52: 数学教师 | E52: 68.83 | F52: 81.75 | G52: 75.29 | H52: 12
A53: 716070210208 | B53: 王济昆 | C53: 高中（含职专）-葫芦岛市绥中县中小学（幼儿园） | D53: 数学教师 | E53: 70.28 | F53: 80.00 | G53: 75.14 | H53: 13
A54: 716070210119 | B54: 张怡宁 | C54: 高中（含职专）-葫芦岛市绥中县中小学（幼儿园） | D54: 数学教师 | E54: 76.16 | F54: 74.00 | G54: 75.08 | H54: 14
A55: 716070210129 | B55: 李思彤 | C55: 高中（含职专）-葫芦岛市绥中县中小学（幼儿园） | D55: 数学教师 | E55: 68.68 | F55: 80.75 | G55: 74.72 | H55: 15
A56: 716070210201 | B56: 李杭 | C56: 高中（含职专）-葫芦岛市绥中县中小学（幼儿园） | D56: 数学教师 | E56: 76.54 | F56: 72.50 | G56: 74.52 | H56: 16
A57: 716070210203 | B57: 贾梦圆 | C57: 高中（含职专）-葫芦岛市绥中县中小学（幼儿园） | D57: 数学教师 | E57: 74.01 | F57: 73.00 | G57: 73.51 | H57: 17
A58: 716070210112 | B58: 王春欣 | C58: 高中（含职专）-葫芦岛市绥中县中小学（幼儿园） | D58: 数学教师 | E58: 67.96 | F58: 79.00 | G58: 73.48 | H58: 18
A59: 716070210130 | B59: 林丹 | C59: 高中（含职专）-葫芦岛市绥中县中小学（幼儿园） | D59: 数学教师 | E59: 77.31 | F59: 69.50 | G59: 73.41 | H59: 19
A60: 716070210113 | B60: 刘孟奇 | C60: 高中（含职专）-葫芦岛市绥中县中小学（幼儿园） | D60: 数学教师 | E60: 71.05 | F60: 72.00 | G60: 71.53 | H60: 20
A61: 716070210122 | B61: 赵思宇 | C61: 高中（含职专）-葫芦岛市绥中县中小学（幼儿园） | D61: 数学教师 | E61: 64.68 | F61: 77.50 | G61: 71.09 | H61: 21
A62: 716080210219 | B62: 刘晓芮 | C62: 高中-葫芦岛市绥中县中小学（幼儿园） | D62: 英语教师 | E62: 82.45 | F62: 77.00 | G62: 79.73 | H62: 1
A63: 716080210406 | B63: 郭丹丹 | C63: 高中-葫芦岛市绥中县中小学（幼儿园） | D63: 英语教师 | E63: 79.77 | F63: 78.75 | G63: 79.26 | H63: 2
A64: 716080210228 | B64: 方子怡 | C64: 高中-葫芦岛市绥中县中小学（幼儿园） | D64: 英语教师 | E64: 78.02 | F64: 78.25 | G64: 78.14 | H64: 3
A65: 716080210221 | B65: 蒲晶 | C65: 高中-葫芦岛市绥中县中小学（幼儿园） | D65: 英语教师 | E65: 74.08 | F65: 81.50 | G65: 77.79 | H65: 4
A66: 716080210226 | B66: 马雨微 | C66: 高中-葫芦岛市绥中县中小学（幼儿园） | D66: 英语教师 | E66: 76.68 | F66: 78.00 | G66: 77.34 | H66: 5
A67: 716080210320 | B67: 贲卓 | C67: 高中-葫芦岛市绥中县中小学（幼儿园） | D67: 英语教师 | E67: 71.94 | F67: 82.50 | G67: 77.22 | H67: 6
A68: 716080210222 | B68: 朱星龙 | C68: 高中-葫芦岛市绥中县中小学（幼儿园） | D68: 英语教师 | E68: 75.25 | F68: 77.75 | G68: =E68/2+F68/2 -> 76.50 | H68: 7
A69: 716080210327 | B69: 杨旭婷 | C69: 高中-葫芦岛市绥中县中小学（幼儿园） | D69: 英语教师 | E69: 74.02 | F69: 77.50 | G69: 75.76 | H69: 8
A70: 716080210316 | B70: 杜婷 | C70: 高中-葫芦岛市绥中县中小学（幼儿园） | D70: 英语教师 | E70: 74.91 | F70: 76.50 | G70: 75.71 | H70: 9
A71: 716080210407 | B71: 任红玥 | C71: 高中-葫芦岛市绥中县中小学（幼儿园） | D71: 英语教师 | E71: 71.15 | F71: 78.75 | G71: 74.95 | H71: 10
A72: 716080210326 | B72: 杨凯依 | C72: 高中-葫芦岛市绥中县中小学（幼儿园） | D72: 英语教师 | E72: 70.76 | F72: 78.50 | G72: 74.63 | H72: 11
A73: 716080210229 | B73: 郭子靖 | C73: 高中-葫芦岛市绥中县中小学（幼儿园） | D73: 英语教师 | E73: 67.27 | F73: 81.50 | G73: 74.39 | H73: 12
A74: 716090210429 | B74: 黄子宁 | C74: 职专-葫芦岛市绥中县中小学（幼儿园） | D74: 美术教师 | E74: 73.72 | F74: 79.75 | G74: 76.74 | H74: 1
A75: 716090210418 | B75: 路雨婷 | C75: 职专-葫芦岛市绥中县中小学（幼儿园） | D75: 美术教师 | E75: 71.21 | F75: 77.50 | G75: 74.36 | H75: 2
A76: 716090210503 | B76: 奚佳慧 | C76: 职专-葫芦岛市绥中县中小学（幼儿园） | D76: 美术教师 | E76: 69.76 | F76: 77.75 | G76: 73.76 | H76: 3
A77: 716100210512 | B77: 李铃玉 | C77: 职专-葫芦岛市绥中县中小学（幼儿园） | D77: 舞蹈教师 | E77: 56.65 | F77: 75.75 | G77: 66.20 | H77: 1
A78: 716100210508 | B78: 高湘淼 | C78: 职专-葫芦岛市绥中县中小学（幼儿园） | D78: 舞蹈教师 | E78: 51.34 | F78: 74.50 | G78: 62.92 | H78: 2
A79: 716100210513 | B79: 魏忠良 | C79: 职专-葫芦岛市绥中县中小学（幼儿园） | D79: 舞蹈教师 | E79: 49.45 | F79: 74.75 | G79: 62.10 | H79: 3
A80: 716110210518 | B80: 田媛媛 | C80: 职专-葫芦岛市绥中县中小学（幼儿园） | D80: 旅游服务与管理 | E80: 78.22 | F80: 77.25 | G80: 77.74 | H80: 1
A81: 716110210521 | B81: 母梓健 | C81: 职专-葫芦岛市绥中县中小学（幼儿园） | D81: 旅游服务与管理 | E81: 75.56 | F81: 78.00 | G81: 76.78 | H81: 2
A82: 716110210520 | B82: 常晴 | C82: 职专-葫芦岛市绥中县中小学（幼儿园） | D82: 旅游服务与管理 | E82: 63.34 | F82: 80.25 | G82: 71.80 | H82: 3
A83: 716110210522 | B83: 李杨 | C83: 职专-葫芦岛市绥中县中小学（幼儿园） | D83: 旅游服务与管理 | E83: 66.06 | F83: 77.00 | G83: 71.53 | H83: 4
A84: 716110210519 | B84: 张玉琪 | C84: 职专-葫芦岛市绥中县中小学（幼儿园） | D84: 旅游服务与管理 | E84: 67.56 | F84: 75.25 | G84: 71.41 | H84: 5
A85: 716110210517 | B85: 张玘慧 | C85: 职专-葫芦岛市绥中县中小学（幼儿园） | D85: 旅游服务与管理 | E85: 66.95 | F85: 75.50 | G85: 71.23 | H85: 6
A86: 716120210524 | B86: 冯诗然 | C86: 职专-葫芦岛市绥中县中小学（幼儿园） | D86: 学前教育 | E86: 83.17 | F86: 78.25 | G86: 80.71 | H86: 1
A87: 716120210527 | B87: 张欣欣 | C87: 职专-葫芦岛市绥中县中小学（幼儿园） | D87: 学前教育 | E87: 59.99 | F87: 75.00 | G87: 67.50 | H87: 2
A88: 716120210528 | B88: 梁爽 | C88: 职专-葫芦岛市绥中县中小学（幼儿园） | D88: 学前教育 | E88: 60.60 | F88: 70.50 | G88: 65.55 | H88: 3
A89: 716130210530 | B89: 刘盈男 | C89: 职专-葫芦岛市绥中县中小学（幼儿园） | D89: 畜牧兽医 | E89: 67.23 | F89: 71.25 | G89: 69.24 | H89: 1
A90: 716130210601 | B90: 冯国政 | C90: 职专-葫芦岛市绥中县中小学（幼儿园） | D90: 畜牧兽医 | E90: 40.49 | F90: 53.25 | G90: 46.87 | H90: 2
A91: 716150210611 | B91: 董宇 | C91: 职专-葫芦岛市绥中县中小学（幼儿园） | D91: 电气运行与控制 | E91: 75.84 | F91: 70.25 | G91: 73.05 | H91: 1
A92: 716150210607 | B92: 白云龙 | C92: 职专-葫芦岛市绥中县中小学（幼儿园） | D92: 电气运行与控制 | E92: 63.25 | F92: 75.75 | G92: 69.50 | H92: 2
A93: 716150210609 | B93: 王翠莲 | C93: 职专-葫芦岛市绥中县中小学（幼儿园） | D93: 电气运行与控制 | E93: 61.82 | F93: 69.75 | G93: 65.79 | H93: 3
A94: 716150210605 | B94: 袁海滨 | C94: 职专-葫芦岛市绥中县中小学（幼儿园） | D94: 电气运行与控制 | E94: 58.43 | F94: 67.25 | G94: 62.84 | H94: 4
A95: 716150210606 | B95: 丁科学 | C95: 职专-葫芦岛市绥中县中小学（幼儿园） | D95: 电气运行与控制 | E95: 56.59 | F95: 69.00 | G95: 62.80 | H95: 5
A96: 716150210604 | B96: 赵波 | C96: 职专-葫芦岛市绥中县中小学（幼儿园） | D96: 电气运行与控制 | E96: 52.67 | F96: 71.50 | G96: 62.09 | H96: 6
A97: 716160210614 | B97: 王钟华 | C97: 职专-葫芦岛市绥中县中小学（幼儿园） | D97: 汽车运用与维修 | E97: 78.02 | F97: 73.75 | G97: 75.89 | H97: 1
A98: 716160210619 | B98: 王晓宇 | C98: 职专-葫芦岛市绥中县中小学（幼儿园） | D98: 汽车运用与维修 | E98: 64.87 | F98: 77.75 | G98: 71.31 | H98: 2
A99: 716160210615 | B99: 郭嘉宏 | C99: 职专-葫芦岛市绥中县中小学（幼儿园） | D99: 汽车运用与维修 | E99: 68.41 | F99: 73.75 | G99: 71.08 | H99: 3
A100: 716170210627 | B100: 闫曦予 | C100: 职专-葫芦岛市绥中县中小学（幼儿园） | D100: 书法教师 | E100: 64.26 | F100: 77.50 | G100: 70.88 | H100: 1
A101: 716170210624 | B101: 赵洋 | C101: 职专-葫芦岛市绥中县中小学（幼儿园） | D101: 书法教师 | E101: 64.89 | F101: 74.75 | G101: 69.82 | H101: 2
A102: 716170210626 | B102: 魏宁 | C102: 职专-葫芦岛市绥中县中小学（幼儿园） | D102: 书法教师 | E102: 56.63 | F102: 79.25 | G102: 67.94 | H102: 3
A103: 716180101318 | B103: 崔洢畅 | C103: 小学-葫芦岛市绥中县中小学（幼儿园） | D103: 语文教师 | E103: 85.80 | F103: 76.50 | G103: 81.15 | H103: 1
A104: 716180100426 | B104: 王惠 | C104: 小学-葫芦岛市绥中县中小学（幼儿园） | D104: 语文教师 | E104: 87.19 | F104: 74.00 | G104: 80.60 | H104: 2
A105: 716180100221 | B105: 高畅 | C105: 小学-葫芦岛市绥中县中小学（幼儿园） | D105: 语文教师 | E105: 87.88 | F105: 72.50 | G105: 80.19 | H105: 3
A106: 716180100330 | B106: 贾婧秀 | C106: 小学-葫芦岛市绥中县中小学（幼儿园） | D106: 语文教师 | E106: 86.14 | F106: 74.00 | G106: 80.07 | H106: 4
A107: 716180101815 | B107: 徐卓 | C107: 小学-葫芦岛市绥中县中小学（幼儿园） | D107: 语文教师 | E107: 85.08 | F107: 75.00 | G107: 80.04 | H107: 5
A108: 716180101415 | B108: 董宁 | C108: 小学-葫芦岛市绥中县中小学（幼儿园） | D108: 语文教师 | E108: 85.84 | F108: 74.00 | G108: 79.92 | H108: 6
A109: 716180101509 | B109: 吕萌 | C109: 小学-葫芦岛市绥中县中小学（幼儿园） | D109: 语文教师 | E109: 84.06 | F109: 75.75 | G109: 79.91 | H109: 7
A110: 716180101008 | B110: 揣圆圆 | C110: 小学-葫芦岛市绥中县中小学（幼儿园） | D110: 语文教师 | E110: 82.15 | F110: 77.25 | G110: 79.70 | H110: 8
A111: 716180100317 | B111: 刘祎玮 | C111: 小学-葫芦岛市绥中县中小学（幼儿园） | D111: 语文教师 | E111: 84.59 | F111: 73.25 | G111: 78.92 | H111: 9
A112: 716180101405 | B112: 魏紫怡 | C112: 小学-葫芦岛市绥中县中小学（幼儿园） | D112: 语文教师 | E112: 85.84 | F112: 71.75 | G112: 78.80 | H112: 10
A113: 716180100207 | B113: 宋禹璇 | C113: 小学-葫芦岛市绥中县中小学（幼儿园） | D113: 语文教师 | E113: 83.73 | F113: 73.50 | G113: 78.62 | H113: 11
A114: 716180101816 | B114: 董晶楠 | C114: 小学-葫芦岛市绥中县中小学（幼儿园） | D114: 语文教师 | E114: 85.67 | F114: 71.50 | G114: 78.59 | H114: 12
A115: 716180100606 | B115: 许娇 | C115: 小学-葫芦岛市绥中县中小学（幼儿园） | D115: 语文教师 | E115: 85.54 | F115: 71.50 | G115: 78.52 | H115: 13
A116: 716180100813 | B116: 赵雪 | C116: 小学-葫芦岛市绥中县中小学（幼儿园） | D116: 语文教师 | E116: 84.03 | F116: 73.00 | G116: 78.52 | H116: 14
A117: 716180100611 | B117: 高宇宁 | C117: 小学-葫芦岛市绥中县中小学（幼儿园） | D117: 语文教师 | E117: 82.42 | F117: 74.50 | G117: 78.46 | H117: 15
A118: 716180101814 | B118: 高碧珣 | C118: 小学-葫芦岛市绥中县中小学（幼儿园） | D118: 语文教师 | E118: 80.66 | F118: 76.25 | G118: 78.46 | H118: 16
A119: 716180100130 | B119: 魏铭辰 | C119: 小学-葫芦岛市绥中县中小学（幼儿园） | D119: 语文教师 | E119: 83.20 | F119: 73.50 | G119: 78.35 | H119: 17
A120: 716180100427 | B120: 刘欢 | C120: 小学-葫芦岛市绥中县中小学（幼儿园） | D120: 语文教师 | E120: 81.25 | F120: 75.25 | G120: 78.25 | H120: 18
A121: 716180100418 | B121: 闫爽 | C121: 小学-葫芦岛市绥中县中小学（幼儿园） | D121: 语文教师 | E121: 85.97 | F121: 70.25 | G121: 78.11 | H121: 19
A122: 716180101302 | B122: 单江珊 | C122: 小学-葫芦岛市绥中县中小学（幼儿园） | D122: 语文教师 | E122: 83.04 | F122: 73.00 | G122: 78.02 | H122: 20
A123: 716180100828 | B123: 张佳慧 | C123: 小学-葫芦岛市绥中县中小学（幼儿园） | D123: 语文教师 | E123: 80.33 | F123: 75.50 | G123: 77.92 | H123: 21
A124: 716180101903 | B124: 张爱珺 | C124: 小学-葫芦岛市绥中县中小学（幼儿园） | D124: 语文教师 | E124: 81.26 | F124: 74.25 | G124: 77.76 | H124: 22
A125: 716180102014 | B125: 魏丹 | C125: 小学-葫芦岛市绥中县中小学（幼儿园） | D125: 语文教师 | E125: 79.81 | F125: 75.25 | G125: 77.53 | H125: 23
A126: 716180102321 | B126: 陈雪 | C126: 小学-葫芦岛市绥中县中小学（幼儿园） | D126: 语文教师 | E126: 80.53 | F126: 74.50 | G126: 77.52 | H126: 24
A127: 716180100226 | B127: 陈双 | C127: 小学-葫芦岛市绥中县中小学（幼儿园） | D127: 语文教师 | E127: 84.43 | F127: 70.25 | G127: 77.34 | H127: 25
A128: 716180101319 | B128: 张诗博 | C128: 小学-葫芦岛市绥中县中小学（幼儿园） | D128: 语文教师 | E128: 80.13 | F128: 74.50 | G128: 77.32 | H128: 26
A129: 716180100830 | B129: 沈思雯 | C129: 小学-葫芦岛市绥中县中小学（幼儿园） | D129: 语文教师 | E129: 83.83 | F129: 70.75 | G129: 77.29 | H129: 27
A130: 716180101020 | B130: 齐琦 | C130: 小学-葫芦岛市绥中县中小学（幼儿园） | D130: 语文教师 | E130: 82.97 | F130: 71.50 | G130: 77.24 | H130: 28
A131: 716180101926 | B131: 李凡 | C131: 小学-葫芦岛市绥中县中小学（幼儿园） | D131: 语文教师 | E131: 82.35 | F131: 71.75 | G131: 77.05 | H131: 29
A132: 716180100116 | B132: 金思瑶 | C132: 小学-葫芦岛市绥中县中小学（幼儿园） | D132: 语文教师 | E132: 79.22 | F132: 74.75 | G132: =E132/2+F132/2 -> 76.99 | H132: 30
A133: 716180101007 | B133: 杨杭 | C133: 小学-葫芦岛市绥中县中小学（幼儿园） | D133: 语文教师 | E133: 83.13 | F133: 70.75 | G133: 76.94 | H133: 31
A134: 716180101310 | B134: 王旗 | C134: 小学-葫芦岛市绥中县中小学（幼儿园） | D134: 语文教师 | E134: 81.00 | F134: 72.75 | G134: 76.88 | H134: 32
A135: 716180101920 | B135: 李佳睿 | C135: 小学-葫芦岛市绥中县中小学（幼儿园） | D135: 语文教师 | E135: 80.62 | F135: 73.00 | G135: 76.81 | H135: 33
A136: 716180100214 | B136: 姚慧祎 | C136: 小学-葫芦岛市绥中县中小学（幼儿园） | D136: 语文教师 | E136: 86.86 | F136: 66.75 | G136: 76.81 | H136: 34
A137: 716180100123 | B137: 吕晚秋 | C137: 小学-葫芦岛市绥中县中小学（幼儿园） | D137: 语文教师 | E137: 78.98 | F137: 74.50 | G137: 76.74 | H137: 35
A138: 716180100808 | B138: 穆薪屹 | C138: 小学-葫芦岛市绥中县中小学（幼儿园） | D138: 语文教师 | E138: 80.44 | F138: 73.00 | G138: 76.72 | H138: 36
A139: 716180101526 | B139: 姚迪雅 | C139: 小学-葫芦岛市绥中县中小学（幼儿园） | D139: 语文教师 | E139: 79.91 | F139: 73.50 | G139: 76.71 | H139: 37
A140: 716180101127 | B140: 赵坤媛 | C140: 小学-葫芦岛市绥中县中小学（幼儿园） | D140: 语文教师 | E140: 82.88 | F140: 70.50 | G140: 76.69 | H140: 38
A141: 716180100423 | B141: 杨婷婷 | C141: 小学-葫芦岛市绥中县中小学（幼儿园） | D141: 语文教师 | E141: 80.24 | F141: 73.00 | G141: 76.62 | H141: 39
A142: 716180100812 | B142: 张也 | C142: 小学-葫芦岛市绥中县中小学（幼儿园） | D142: 语文教师 | E142: 81.46 | F142: 71.75 | G142: 76.61 | H142: 40
A143: 716180101624 | B143: 张馨月 | C143: 小学-葫芦岛市绥中县中小学（幼儿园） | D143: 语文教师 | E143: 78.17 | F143: 75.00 | G143: 76.59 | H143: 41
A144: 716180100103 | B144: 陈可心 | C144: 小学-葫芦岛市绥中县中小学（幼儿园） | D144: 语文教师 | E144: 77.67 | F144: 75.50 | G144: 76.59 | H144: 41
A145: 716180100117 | B145: 张俏婷 | C145: 小学-葫芦岛市绥中县中小学（幼儿园） | D145: 语文教师 | E145: 78.93 | F145: 74.00 | G145: 76.47 | H145: 43
A146: 716180102213 | B146: 曹秋菊 | C146: 小学-葫芦岛市绥中县中小学（幼儿园） | D146: 语文教师 | E146: 79.38 | F146: 73.50 | G146: 76.44 | H146: 44
A147: 716180101030 | B147: 施妮妍 | C147: 小学-葫芦岛市绥中县中小学（幼儿园） | D147: 语文教师 | E147: 80.57 | F147: 72.25 | G147: 76.41 | H147: 45
A148: 716180100822 | B148: 黄玮 | C148: 小学-葫芦岛市绥中县中小学（幼儿园） | D148: 语文教师 | E148: 80.57 | F148: 72.25 | G148: 76.41 | H148: 45
A149: 716180100815 | B149: 付金璐 | C149: 小学-葫芦岛市绥中县中小学（幼儿园） | D149: 语文教师 | E149: 77.54 | F149: 75.25 | G149: 76.40 | H149: 47
A150: 716180102112 | B150: 胡娜 | C150: 小学-葫芦岛市绥中县中小学（幼儿园） | D150: 语文教师 | E150: 80.01 | F150: 72.75 | G150: 76.38 | H150: 48
A151: 716180100721 | B151: 屠敬雯 | C151: 小学-葫芦岛市绥中县中小学（幼儿园） | D151: 语文教师 | E151: 77.24 | F151: 75.50 | G151: 76.37 | H151: 49
A152: 716180101308 | B152: 田佳琳 | C152: 小学-葫芦岛市绥中县中小学（幼儿园） | D152: 语文教师 | E152: 81.89 | F152: 70.75 | G152: 76.32 | H152: 50
A153: 716180100630 | B153: 贺林 | C153: 小学-葫芦岛市绥中县中小学（幼儿园） | D153: 语文教师 | E153: 79.88 | F153: 72.75 | G153: 76.32 | H153: 51
A154: 716180101610 | B154: 刘美辰 | C154: 小学-葫芦岛市绥中县中小学（幼儿园） | D154: 语文教师 | E154: 81.13 | F154: 71.25 | G154: 76.19 | H154: 52
A155: 716180100524 | B155: 张雅萱 | C155: 小学-葫芦岛市绥中县中小学（幼儿园） | D155: 语文教师 | E155: 79.29 | F155: 73.00 | G155: 76.15 | H155: 53
A156: 716180100106 | B156: 高一冉 | C156: 小学-葫芦岛市绥中县中小学（幼儿园） | D156: 语文教师 | E156: 82.02 | F156: 70.25 | G156: 76.14 | H156: 54
A157: 716180100928 | B157: 施佳 | C157: 小学-葫芦岛市绥中县中小学（幼儿园） | D157: 语文教师 | E157: 77.41 | F157: 74.75 | G157: 76.08 | H157: 55
A158: 716180101428 | B158: 郭佳慧 | C158: 小学-葫芦岛市绥中县中小学（幼儿园） | D158: 语文教师 | E158: 83.11 | F158: 69.00 | G158: 76.06 | H158: 56
A159: 716180101916 | B159: 杨子婵 | C159: 小学-葫芦岛市绥中县中小学（幼儿园） | D159: 语文教师 | E159: 76.58 | F159: 75.25 | G159: 75.92 | H159: 57
A160: 716180101303 | B160: 朱敏慧 | C160: 小学-葫芦岛市绥中县中小学（幼儿园） | D160: 语文教师 | E160: 81.46 | F160: 70.25 | G160: 75.86 | H160: 58
A161: 716180100402 | B161: 苏思雨 | C161: 小学-葫芦岛市绥中县中小学（幼儿园） | D161: 语文教师 | E161: 77.18 | F161: 74.50 | G161: 75.84 | H161: 59
A162: 716180101523 | B162: 董宇航 | C162: 小学-葫芦岛市绥中县中小学（幼儿园） | D162: 语文教师 | E162: 78.17 | F162: 73.50 | G162: 75.84 | H162: 60
A163: 716180102318 | B163: 杨蕉语 | C163: 小学-葫芦岛市绥中县中小学（幼儿园） | D163: 语文教师 | E163: 75.10 | F163: 76.50 | G163: 75.80 | H163: 61
A164: 716180100921 | B164: 于思涵 | C164: 小学-葫芦岛市绥中县中小学（幼儿园） | D164: 语文教师 | E164: 78.10 | F164: 73.50 | G164: 75.80 | H164: 61
A165: 716180101205 | B165: 苗芷芯 | C165: 小学-葫芦岛市绥中县中小学（幼儿园） | D165: 语文教师 | E165: 80.34 | F165: 71.25 | G165: 75.80 | H165: 63
A166: 716180100511 | B166: 郭蕴昊 | C166: 小学-葫芦岛市绥中县中小学（幼儿园） | D166: 语文教师 | E166: 81.30 | F166: 70.25 | G166: 75.78 | H166: 64
A167: 716180101105 | B167: 殷歌 | C167: 小学-葫芦岛市绥中县中小学（幼儿园） | D167: 语文教师 | E167: 76.78 | F167: 74.75 | G167: 75.77 | H167: 65
A168: 716180100516 | B168: 李思雯 | C168: 小学-葫芦岛市绥中县中小学（幼儿园） | D168: 语文教师 | E168: 77.01 | F168: 74.50 | G168: 75.76 | H168: 66
A169: 716180100724 | B169: 巫芯卉 | C169: 小学-葫芦岛市绥中县中小学（幼儿园） | D169: 语文教师 | E169: 77.87 | F169: 73.50 | G169: 75.69 | H169: 67
A170: 716180100218 | B170: 支艺涵 | C170: 小学-葫芦岛市绥中县中小学（幼儿园） | D170: 语文教师 | E170: 83.59 | F170: 67.75 | G170: 75.67 | H170: 68
A171: 716180101829 | B171: 孙志怡 | C171: 小学-葫芦岛市绥中县中小学（幼儿园） | D171: 语文教师 | E171: 78.06 | F171: 73.25 | G171: 75.66 | H171: 69
A172: 716180101707 | B172: 李昕航 | C172: 小学-葫芦岛市绥中县中小学（幼儿园） | D172: 语文教师 | E172: 80.04 | F172: 71.25 | G172: 75.65 | H172: 70
A173: 716180102214 | B173: 张伊妍 | C173: 小学-葫芦岛市绥中县中小学（幼儿园） | D173: 语文教师 | E173: 79.22 | F173: 72.00 | G173: 75.61 | H173: 71
A174: 716180100728 | B174: 田雨新 | C174: 小学-葫芦岛市绥中县中小学（幼儿园） | D174: 语文教师 | E174: 77.96 | F174: 73.25 | G174: 75.61 | H174: 72
A175: 716180102309 | B175: 熊雨竹 | C175: 小学-葫芦岛市绥中县中小学（幼儿园） | D175: 语文教师 | E175: 82.35 | F175: 68.75 | G175: 75.55 | H175: 73
A176: 716180101721 | B176: 柴艺 | C176: 小学-葫芦岛市绥中县中小学（幼儿园） | D176: 语文教师 | E176: 77.57 | F176: 73.50 | G176: 75.54 | H176: 74
A177: 716180100313 | B177: 窦明宇 | C177: 小学-葫芦岛市绥中县中小学（幼儿园） | D177: 语文教师 | E177: 81.06 | F177: 70.00 | G177: 75.53 | H177: 75
A178: 716180102226 | B178: 唱莹莹 | C178: 小学-葫芦岛市绥中县中小学（幼儿园） | D178: 语文教师 | E178: 77.80 | F178: 73.25 | G178: 75.53 | H178: 76
A179: 716180101226 | B179: 黄晴 | C179: 小学-葫芦岛市绥中县中小学（幼儿园） | D179: 语文教师 | E179: 77.57 | F179: 73.25 | G179: 75.41 | H179: 77
A180: 716180100219 | B180: 徐莹莹 | C180: 小学-葫芦岛市绥中县中小学（幼儿园） | D180: 语文教师 | E180: 77.54 | F180: 73.25 | G180: 75.40 | H180: 78
A181: 716180100602 | B181: 李璐璐 | C181: 小学-葫芦岛市绥中县中小学（幼儿园） | D181: 语文教师 | E181: 79.74 | F181: 71.00 | G181: 75.37 | H181: 79
A182: 716180101211 | B182: 张家爱 | C182: 小学-葫芦岛市绥中县中小学（幼儿园） | D182: 语文教师 | E182: 74.67 | F182: 76.00 | G182: 75.34 | H182: 80
A183: 716180100726 | B183: 马胜男 | C183: 小学-葫芦岛市绥中县中小学（幼儿园） | D183: 语文教师 | E183: 78.15 | F183: 72.50 | G183: 75.33 | H183: 81
A184: 716180102104 | B184: 陈学良 | C184: 小学-葫芦岛市绥中县中小学（幼儿园） | D184: 语文教师 | E184: 79.62 | F184: 71.00 | G184: 75.31 | H184: 82
A185: 716180102026 | B185: 刘澳 | C185: 小学-葫芦岛市绥中县中小学（幼儿园） | D185: 语文教师 | E185: 79.22 | F185: 71.00 | G185: 75.11 | H185: 83
A186: 716180101727 | B186: 李莹 | C186: 小学-葫芦岛市绥中县中小学（幼儿园） | D186: 语文教师 | E186: 78.91 | F186: 71.25 | G186: 75.08 | H186: 84
A187: 716180100615 | B187: 王琬璐 | C187: 小学-葫芦岛市绥中县中小学（幼儿园） | D187: 语文教师 | E187: 79.91 | F187: 70.25 | G187: 75.08 | H187: 84
A188: 716180101016 | B188: 王月 | C188: 小学-葫芦岛市绥中县中小学（幼儿园） | D188: 语文教师 | E188: 78.37 | F188: 71.75 | G188: 75.06 | H188: 86
A189: 716180102219 | B189: 王天淇 | C189: 小学-葫芦岛市绥中县中小学（幼儿园） | D189: 语文教师 | E189: 80.10 | F189: 70.00 | G189: 75.05 | H189: 87
A190: 716180100514 | B190: 王翊涵 | C190: 小学-葫芦岛市绥中县中小学（幼儿园） | D190: 语文教师 | E190: 80.60 | F190: 69.50 | G190: 75.05 | H190: 87
A191: 716180100522 | B191: 刘小双 | C191: 小学-葫芦岛市绥中县中小学（幼儿园） | D191: 语文教师 | E191: 77.76 | F191: 72.25 | G191: 75.01 | H191: 89
A192: 716180102127 | B192: 邓丽敏 | C192: 小学-葫芦岛市绥中县中小学（幼儿园） | D192: 语文教师 | E192: 73.75 | F192: 76.25 | G192: 75.00 | H192: 90
A193: 716180101019 | B193: 魏秀双 | C193: 小学-葫芦岛市绥中县中小学（幼儿园） | D193: 语文教师 | E193: 75.47 | F193: 74.50 | G193: 74.99 | H193: 91
A194: 716180102221 | B194: 朱彤 | C194: 小学-葫芦岛市绥中县中小学（幼儿园） | D194: 语文教师 | E194: 75.46 | F194: 74.50 | G194: 74.98 | H194: 92
A195: 716180100608 | B195: 程凯 | C195: 小学-葫芦岛市绥中县中小学（幼儿园） | D195: 语文教师 | E195: 80.21 | F195: 69.75 | G195: 74.98 | H195: 92
A196: 716180100901 | B196: 赵彩玉 | C196: 小学-葫芦岛市绥中县中小学（幼儿园） | D196: 语文教师 | E196: 76.42 | F196: 73.50 | G196: =E196/2+F196/2 -> 74.96 | H196: 94
A197: 716180101017 | B197: 李宁 | C197: 小学-葫芦岛市绥中县中小学（幼儿园） | D197: 语文教师 | E197: 78.66 | F197: 71.25 | G197: 74.96 | H197: 95
A198: 716180102418 | B198: 王彬 | C198: 小学-葫芦岛市绥中县中小学（幼儿园） | D198: 语文教师 | E198: 77.40 | F198: 72.50 | G198: 74.95 | H198: 96
A199: 716180101313 | B199: 巫莎莎 | C199: 小学-葫芦岛市绥中县中小学（幼儿园） | D199: 语文教师 | E199: 78.06 | F199: 71.75 | G199: 74.91 | H199: 97
A200: 716180100704 | B200: 孙冰 | C200: 小学-葫芦岛市绥中县中小学（幼儿园） | D200: 语文教师 | E200: 79.75 | F200: 70.00 | G200: 74.88 | H200: 98
... 424 more rows
